[Event "January 2 Late 2024"]
[Site "https://www.chess.com"]
[Date "2024.01.02"]
[Round "7"]
[White "Araujo Sanchez, Josue"]
[Black "Livaic, Leon"]
[Result "0-1"]
[Board "25"]
[TimeControl "180+1"]
[WhiteFideId "6416896"]
[BlackFideId "14531534"]
[WhiteElo "2706"]
[BlackElo "2901"]
[WhiteTeam "DOM"]
[BlackTeam "CRO"]
[WhiteClock "0:02:19"]
[BlackClock "0:01:18"]

1. e4 {[%clk 0:03:00]}  e6 {[%clk 0:02:59]} 2. d4 {[%clk 0:03:00]}  d5 {[%clk 0:02:58]} 3. Bd2 {[%clk 0:03:00]}  dxe4 {[%clk 0:02:56]} 4. Bc3 {[%clk 0:02:59]}  Nf6 {[%clk 0:02:55]} 5. Nd2 {[%clk 0:02:59]}  Nc6 {[%clk 0:02:49]} 6. Bb5 {[%clk 0:02:57]}  Bd7 {[%clk 0:02:50]} 7. Ne2 {[%clk 0:02:57]}  a6 {[%clk 0:02:48]} 8. Ba4 {[%clk 0:02:57]}  b5 {[%clk 0:02:47]} 9. Bb3 {[%clk 0:02:55]}  b4 {[%clk 0:02:48]} 10. d5 {[%clk 0:02:53]}  bxc3 {[%clk 0:02:48]} 11. dxc6 {[%clk 0:02:51]}  cxd2+ {[%clk 0:02:49]} 12. Qxd2 {[%clk 0:02:52]}  Bxc6 {[%clk 0:02:48]} 13. Qc3 {[%clk 0:02:52]}  Bb5 {[%clk 0:02:22]} 14. Rd1 {[%clk 0:02:49]}  Bd6 {[%clk 0:02:20]} 15. Nd4 {[%clk 0:02:49]}  O-O {[%clk 0:02:16]} 16. a4 {[%clk 0:02:49]}  Bd7 {[%clk 0:02:09]} 17. O-O {[%clk 0:02:48]}  Nd5 {[%clk 0:02:00]} 18. Qh3 {[%clk 0:02:45]}  Rb8 {[%clk 0:01:47]} 19. Rfe1 {[%clk 0:02:42]}  Nf6 {[%clk 0:01:36]} 20. Qh4 {[%clk 0:02:32]}  e5 {[%clk 0:01:31]} 21. Ne2 {[%clk 0:02:31]}  Qe8 {[%clk 0:01:18]} 22. Ra1 {[%clk 0:02:19]}  Be6 {[%clk 0:01:18]} 0-1

[Event "January 2 Late 2024"]
[Site "https://www.chess.com"]
[Date "2024.01.02"]
[Round "7"]
[White "Ibarra Jerez, Jose Carlos"]
[Black "Tanriverdi, Enes"]
[Result "1-0"]
[Board "26"]
[TimeControl "180+1"]
[WhiteFideId "2226332"]
[BlackFideId "34543279"]
[WhiteElo "2892"]
[BlackElo "2705"]
[WhiteTeam "ESP"]
[BlackTeam "TUR"]
[WhiteClock "0:01:37"]
[BlackClock "0:00:05"]

1. e4 {[%clk 0:03:00]}  c5 {[%clk 0:02:58]} 2. Nf3 {[%clk 0:02:59]}  d6 {[%clk 0:02:58]} 3. c3 {[%clk 0:02:59]}  Nf6 {[%clk 0:02:58]} 4. h3 {[%clk 0:03:00]}  Nc6 {[%clk 0:02:57]} 5. Bd3 {[%clk 0:03:00]}  g6 {[%clk 0:02:55]} 6. Bc2 {[%clk 0:03:00]}  Bg7 {[%clk 0:02:55]} 7. O-O {[%clk 0:02:59]}  O-O {[%clk 0:02:55]} 8. d4 {[%clk 0:03:00]}  b6 {[%clk 0:02:43]} 9. Re1 {[%clk 0:02:53]}  Bb7 {[%clk 0:02:39]} 10. d5 {[%clk 0:02:52]}  Na5 {[%clk 0:02:37]} 11. Nbd2 {[%clk 0:02:42]}  b5 {[%clk 0:02:33]} 12. a4 {[%clk 0:02:34]}  b4 {[%clk 0:02:32]} 13. c4 {[%clk 0:02:33]}  e6 {[%clk 0:02:30]} 14. Rb1 {[%clk 0:02:31]}  exd5 {[%clk 0:02:28]} 15. exd5 {[%clk 0:02:32]}  Re8 {[%clk 0:02:25]} 16. b3 {[%clk 0:02:30]}  Bc8 {[%clk 0:02:01]} 17. Nf1 {[%clk 0:02:28]}  Rxe1 {[%clk 0:01:53]} 18. Qxe1 {[%clk 0:02:27]}  Qe8 {[%clk 0:01:52]} 19. Bf4 {[%clk 0:02:26]}  Nb7 {[%clk 0:01:48]} 20. Qd2 {[%clk 0:02:25]}  Bf5 {[%clk 0:01:45]} 21. Bxf5 {[%clk 0:02:21]}  gxf5 {[%clk 0:01:44]} 22. Re1 {[%clk 0:02:19]}  Ne4 {[%clk 0:01:43]} 23. Qd3 {[%clk 0:02:17]}  Bc3 {[%clk 0:01:13]} 24. Re2 {[%clk 0:02:17]}  Na5 {[%clk 0:01:12]} 25. Ne3 {[%clk 0:02:08]}  Qd7 {[%clk 0:01:03]} 26. Nh4 {[%clk 0:02:08]}  Bd4 {[%clk 0:00:14]} 27. Nexf5 {[%clk 0:02:04]}  Nxf2 {[%clk 0:00:13]} 28. Rxf2 {[%clk 0:01:43]}  Bxf2+ {[%clk 0:00:12]} 29. Kxf2 {[%clk 0:01:44]}  Kh8 {[%clk 0:00:05]} 30. Bg5 {[%clk 0:01:37]} 1-0

[Event "January 2 Late 2024"]
[Site "https://www.chess.com"]
[Date "2024.01.02"]
[Round "7"]
[White "Batsuren, Dambasuren"]
[Black "Rosen, Eric"]
[Result "0-1"]
[Board "27"]
[TimeControl "180+1"]
[WhiteFideId "4902920"]
[BlackFideId "2032562"]
[WhiteElo "2863"]
[BlackElo "2692"]
[WhiteTeam "MGL"]
[BlackTeam "USA"]
[WhiteClock "0:00:00"]
[BlackClock "0:00:03"]

1. d4 {[%clk 0:03:00]}  d5 {[%clk 0:03:00]} 2. c4 {[%clk 0:03:01]}  e6 {[%clk 0:03:00]} 3. Nf3 {[%clk 0:02:59]}  Nf6 {[%clk 0:03:00]} 4. g3 {[%clk 0:02:58]}  dxc4 {[%clk 0:02:59]} 5. Bg2 {[%clk 0:02:57]}  Bb4+ {[%clk 0:02:59]} 6. Nbd2 {[%clk 0:02:46]}  b5 {[%clk 0:02:59]} 7. a4 {[%clk 0:02:46]}  c6 {[%clk 0:02:58]} 8. Qc2 {[%clk 0:02:36]}  Bb7 {[%clk 0:02:37]} 9. h4 {[%clk 0:02:36]}  Qb6 {[%clk 0:02:33]} 10. h5 {[%clk 0:02:33]}  h6 {[%clk 0:02:33]} 11. Kf1 {[%clk 0:02:05]}  Nbd7 {[%clk 0:02:29]} 12. e4 {[%clk 0:01:45]}  e5 {[%clk 0:01:37]} 13. Nxe5 {[%clk 0:01:24]}  Nxe5 {[%clk 0:01:37]} 14. dxe5 {[%clk 0:01:24]}  Ng4 {[%clk 0:01:38]} 15. Nf3 {[%clk 0:01:25]}  Bc5 {[%clk 0:01:38]} 16. a5 {[%clk 0:01:25]}  Qc7 {[%clk 0:01:35]} 17. Bf4 {[%clk 0:01:05]}  Bxf2 {[%clk 0:01:15]} 18. Qc3 {[%clk 0:00:44]}  Ba6 {[%clk 0:00:53]} 19. e6 {[%clk 0:00:19]}  Qxf4 {[%clk 0:00:53]} 20. gxf4 {[%clk 0:00:17]}  b4 {[%clk 0:00:53]} 21. exf7+ {[%clk 0:00:11]}  Ke7 {[%clk 0:00:42]} 22. Bh3 {[%clk 0:00:07]}  bxc3 {[%clk 0:00:36]} 23. bxc3 {[%clk 0:00:08]}  Be3 {[%clk 0:00:22]} 24. Bxg4 {[%clk 0:00:08]}  Bxf4 {[%clk 0:00:23]} 25. Nd4 {[%clk 0:00:06]}  c5 {[%clk 0:00:15]} 26. Ne6 {[%clk 0:00:05]}  Be5 {[%clk 0:00:07]} 27. Nxc5 {[%clk 0:00:05]}  Bc8 {[%clk 0:00:04]} 28. Bxc8 {[%clk 0:00:02]}  Raxc8 {[%clk 0:00:05]} 29. Na4 {[%clk 0:00:02]}  Kxf7 {[%clk 0:00:06]} 30. Ke2 {[%clk 0:00:02]}  Ke6 {[%clk 0:00:06]} 31. Rab1 {[%clk 0:00:02]}  Rc7 {[%clk 0:00:06]} 32. Rb5 {[%clk 0:00:02]}  Rd8 {[%clk 0:00:05]} 33. Rc5 {[%clk 0:00:02]}  Rdc8 {[%clk 0:00:04]} 34. Rxc7 {[%clk 0:00:02]}  Rxc7 {[%clk 0:00:05]} 35. Rd1 {[%clk 0:00:02]}  Rc6 {[%clk 0:00:04]} 36. Rd5 {[%clk 0:00:02]}  Bd6 {[%clk 0:00:04]} 37. Ke3 {[%clk 0:00:02]}  Be7 {[%clk 0:00:04]} 38. Kd4 {[%clk 0:00:02]}  Kf7 {[%clk 0:00:02]} 39. e5 {[%clk 0:00:03]}  g6 {[%clk 0:00:02]} 40. hxg6+ {[%clk 0:00:02]}  Kxg6 {[%clk 0:00:03]} 41. Rd7 {[%clk 0:00:03]}  Bg5 {[%clk 0:00:03]} 42. Rxa7 {[%clk 0:00:03]}  h5 {[%clk 0:00:04]} 43. Kd5 {[%clk 0:00:04]}  Rc8 {[%clk 0:00:04]} 44. Nb6 {[%clk 0:00:04]}  Rd8+ {[%clk 0:00:04]} 45. Kxc4 {[%clk 0:00:04]}  h4 {[%clk 0:00:04]} 46. Nd5 {[%clk 0:00:03]}  h3 {[%clk 0:00:04]} 47. Ra6+ {[%clk 0:00:03]}  Kf5 {[%clk 0:00:03]} 48. e6 {[%clk 0:00:02]}  h2 {[%clk 0:00:03]} 49. e7 {[%clk 0:00:02]}  Re8 {[%clk 0:00:03]} 50. Ne3+ {[%clk 0:00:00]}  Bxe3 {[%clk 0:00:03]} 0-1

[Event "January 2 Late 2024"]
[Site "https://www.chess.com"]
[Date "2024.01.02"]
[Round "7"]
[White "Riff, Vincent"]
[Black "Lobanov, Sergei"]
[Result "1-0"]
[Board "28"]
[TimeControl "180+1"]
[WhiteFideId "617776"]
[BlackFideId "24183750"]
[WhiteElo "2686"]
[BlackElo "2840"]
[WhiteTeam "FRA"]
[BlackTeam "FID"]
[WhiteClock "0:00:27"]
[BlackClock "0:00:07"]

1. e4 {[%clk 0:03:00]}  e5 {[%clk 0:03:00]} 2. Nf3 {[%clk 0:03:00]}  Nc6 {[%clk 0:03:00]} 3. Bb5 {[%clk 0:03:01]}  a6 {[%clk 0:03:00]} 4. Ba4 {[%clk 0:03:01]}  Nf6 {[%clk 0:03:01]} 5. O-O {[%clk 0:03:00]}  b5 {[%clk 0:03:02]} 6. Bb3 {[%clk 0:03:00]}  Bc5 {[%clk 0:03:02]} 7. a4 {[%clk 0:02:59]}  Rb8 {[%clk 0:03:01]} 8. Nxe5 {[%clk 0:02:59]}  Nxe5 {[%clk 0:03:01]} 9. d4 {[%clk 0:03:00]}  Bxd4 {[%clk 0:03:01]} 10. Qxd4 {[%clk 0:03:01]}  d6 {[%clk 0:03:01]} 11. f4 {[%clk 0:03:01]}  Nc6 {[%clk 0:02:59]} 12. Qc3 {[%clk 0:03:01]}  Bb7 {[%clk 0:02:40]} 13. e5 {[%clk 0:02:54]}  Ne4 {[%clk 0:02:37]} 14. Qe1 {[%clk 0:02:50]}  Nd4 {[%clk 0:02:33]} 15. Nc3 {[%clk 0:02:42]}  Nxb3 {[%clk 0:02:12]} 16. cxb3 {[%clk 0:02:33]}  Nxc3 {[%clk 0:02:12]} 17. Qxc3 {[%clk 0:02:11]}  O-O {[%clk 0:02:09]} 18. Be3 {[%clk 0:02:11]}  dxe5 {[%clk 0:02:07]} 19. fxe5 {[%clk 0:02:09]}  Qd5 {[%clk 0:02:06]} 20. Rf3 {[%clk 0:02:02]}  Rfe8 {[%clk 0:01:44]} 21. Rg3 {[%clk 0:01:58]}  Rxe5 {[%clk 0:01:17]} 22. Bd4 {[%clk 0:01:52]}  Re2 {[%clk 0:00:35]} 23. Rxg7+ {[%clk 0:01:47]}  Kf8 {[%clk 0:00:36]} 24. Bc5+ {[%clk 0:01:34]}  Ke8 {[%clk 0:00:35]} 25. Re1 {[%clk 0:01:21]}  Rxe1+ {[%clk 0:00:30]} 26. Qxe1+ {[%clk 0:01:20]}  Kd7 {[%clk 0:00:30]} 27. Qe7+ {[%clk 0:00:47]}  Kc6 {[%clk 0:00:30]} 28. Qf6+ {[%clk 0:00:47]}  Kxc5 {[%clk 0:00:19]} 29. Rg5 {[%clk 0:00:47]}  Re8 {[%clk 0:00:14]} 30. Rxd5+ {[%clk 0:00:47]}  Bxd5 {[%clk 0:00:15]} 31. Qxa6 {[%clk 0:00:40]}  c6 {[%clk 0:00:15]} 32. axb5 {[%clk 0:00:31]}  cxb5 {[%clk 0:00:15]} 33. Qa7+ {[%clk 0:00:31]}  Kc6 {[%clk 0:00:12]} 34. b4 {[%clk 0:00:31]}  Re1+ {[%clk 0:00:11]} 35. Kf2 {[%clk 0:00:31]}  Rc1 {[%clk 0:00:11]} 36. Qa8+ {[%clk 0:00:28]}  Kd6 {[%clk 0:00:12]} 37. Qd8+ {[%clk 0:00:28]}  Ke6 {[%clk 0:00:09]} 38. Qe8+ {[%clk 0:00:28]}  Kd6 {[%clk 0:00:09]} 39. Qf8+ {[%clk 0:00:27]}  Ke6 {[%clk 0:00:07]} 40. Qh6+ {[%clk 0:00:27]} 1-0

[Event "January 2 Late 2024"]
[Site "https://www.chess.com"]
[Date "2024.01.02"]
[Round "7"]
[White "Jakubowski, Krzysztof"]
[Black "Kadric, Denis"]
[Result "0-1"]
[Board "29"]
[TimeControl "180+1"]
[WhiteFideId "1112848"]
[BlackFideId "14403803"]
[WhiteElo "2674"]
[BlackElo "2834"]
[WhiteTeam "POL"]
[BlackTeam "MNE"]
[WhiteClock "0:00:00"]
[BlackClock "0:00:11"]

1. e4 {[%clk 0:03:00]}  d6 {[%clk 0:03:00]} 2. d4 {[%clk 0:03:00]}  Nf6 {[%clk 0:03:01]} 3. Nc3 {[%clk 0:03:00]}  e5 {[%clk 0:03:02]} 4. Nge2 {[%clk 0:02:59]}  Nbd7 {[%clk 0:03:02]} 5. h3 {[%clk 0:02:58]}  h5 {[%clk 0:03:02]} 6. Be3 {[%clk 0:02:57]}  c6 {[%clk 0:03:02]} 7. g3 {[%clk 0:02:54]}  b5 {[%clk 0:03:02]} 8. Bg2 {[%clk 0:02:54]}  Bb7 {[%clk 0:03:02]} 9. O-O {[%clk 0:02:53]}  Be7 {[%clk 0:03:03]} 10. a3 {[%clk 0:02:51]}  Qc7 {[%clk 0:03:01]} 11. Qd2 {[%clk 0:02:50]}  O-O {[%clk 0:03:01]} 12. Rad1 {[%clk 0:02:49]}  Rfe8 {[%clk 0:03:01]} 13. f4 {[%clk 0:02:48]}  a6 {[%clk 0:02:59]} 14. Kh1 {[%clk 0:02:28]}  Bf8 {[%clk 0:03:00]} 15. fxe5 {[%clk 0:02:24]}  dxe5 {[%clk 0:03:00]} 16. Bg5 {[%clk 0:02:24]}  exd4 {[%clk 0:02:50]} 17. Nxd4 {[%clk 0:02:22]}  c5 {[%clk 0:02:40]} 18. Nf5 {[%clk 0:02:17]}  Rad8 {[%clk 0:01:59]} 19. Qf2 {[%clk 0:02:02]}  Qe5 {[%clk 0:01:19]} 20. Rde1 {[%clk 0:01:25]}  b4 {[%clk 0:01:05]} 21. Nd5 {[%clk 0:01:24]}  Bxd5 {[%clk 0:01:04]} 22. exd5 {[%clk 0:01:23]}  Qxb2 {[%clk 0:01:05]} 23. Rb1 {[%clk 0:01:05]}  Qxa3 {[%clk 0:00:59]} 24. Nh6+ {[%clk 0:00:54]}  gxh6 {[%clk 0:00:57]} 25. Bxf6 {[%clk 0:00:54]}  Nxf6 {[%clk 0:00:51]} 26. Rb3 {[%clk 0:00:53]}  Qa2 {[%clk 0:00:42]} 27. Qxf6 {[%clk 0:00:52]}  Rd7 {[%clk 0:00:40]} 28. d6 {[%clk 0:00:35]}  Re6 {[%clk 0:00:31]} 29. Qf5 {[%clk 0:00:30]}  Rexd6 {[%clk 0:00:29]} 30. Be4 {[%clk 0:00:28]}  Bg7 {[%clk 0:00:23]} 31. Rbf3 {[%clk 0:00:22]}  Qe6 {[%clk 0:00:22]} 32. Qh7+ {[%clk 0:00:22]}  Kf8 {[%clk 0:00:23]} 33. Bf5 {[%clk 0:00:22]}  Qc4 {[%clk 0:00:21]} 34. Bxd7 {[%clk 0:00:21]}  Rxd7 {[%clk 0:00:22]} 35. R1f2 {[%clk 0:00:19]}  a5 {[%clk 0:00:21]} 36. Qf5 {[%clk 0:00:17]}  Qd5 {[%clk 0:00:22]} 37. Qf4 {[%clk 0:00:14]}  a4 {[%clk 0:00:17]} 38. Kh2 {[%clk 0:00:14]}  a3 {[%clk 0:00:16]} 39. Rd3 {[%clk 0:00:14]}  Qe6 {[%clk 0:00:15]} 40. Qb8+ {[%clk 0:00:12]}  Ke7 {[%clk 0:00:15]} 41. Rxd7+ {[%clk 0:00:10]}  Qxd7 {[%clk 0:00:15]} 42. Re2+ {[%clk 0:00:11]}  Kf6 {[%clk 0:00:16]} 43. Qf4+ {[%clk 0:00:09]}  Kg6 {[%clk 0:00:16]} 44. Qe4+ {[%clk 0:00:09]}  Qf5 {[%clk 0:00:17]} 45. Qc6+ {[%clk 0:00:07]}  Kh7 {[%clk 0:00:16]} 46. Qa6 {[%clk 0:00:05]}  Bd4 {[%clk 0:00:16]} 47. h4 {[%clk 0:00:05]}  Qf3 {[%clk 0:00:12]} 48. Rg2 {[%clk 0:00:04]}  Qd5 {[%clk 0:00:11]} 49. Qa7 {[%clk 0:00:03]}  a2 {[%clk 0:00:11]} 50. Re2 {[%clk 0:00:00]}  a1=Q {[%clk 0:00:11]} 0-1

[Event "January 2 Late 2024"]
[Site "https://www.chess.com"]
[Date "2024.01.02"]
[Round "7"]
[White "Troff, Kayden"]
[Black "Bjelobrk, Igor"]
[Result "1-0"]
[Board "30"]
[TimeControl "180+1"]
[WhiteFideId "2047896"]
[BlackFideId "4300726"]
[WhiteElo "2805"]
[BlackElo "2654"]
[WhiteTeam "USA"]
[BlackTeam "AUS"]
[WhiteClock "0:00:08"]
[BlackClock "0:00:05"]

1. d4 {[%clk 0:03:00]}  e6 {[%clk 0:02:52]} 2. Nf3 {[%clk 0:03:00]}  c5 {[%clk 0:02:51]} 3. Bf4 {[%clk 0:02:53]}  cxd4 {[%clk 0:02:40]} 4. Qxd4 {[%clk 0:02:53]}  Nc6 {[%clk 0:02:39]} 5. Qd2 {[%clk 0:02:53]}  d5 {[%clk 0:02:36]} 6. e3 {[%clk 0:02:53]}  Nf6 {[%clk 0:02:36]} 7. Bd3 {[%clk 0:02:50]}  Be7 {[%clk 0:02:32]} 8. O-O {[%clk 0:02:49]}  O-O {[%clk 0:02:32]} 9. Nc3 {[%clk 0:02:49]}  b6 {[%clk 0:02:32]} 10. Rad1 {[%clk 0:02:46]}  Bb7 {[%clk 0:02:32]} 11. e4 {[%clk 0:02:38]}  Nb4 {[%clk 0:02:00]} 12. e5 {[%clk 0:02:26]}  Ne4 {[%clk 0:01:52]} 13. Bxe4 {[%clk 0:02:16]}  dxe4 {[%clk 0:01:51]} 14. Nd4 {[%clk 0:02:16]}  Bc5 {[%clk 0:01:31]} 15. a3 {[%clk 0:01:58]}  Nd5 {[%clk 0:01:22]} 16. Bg5 {[%clk 0:01:24]}  Qc7 {[%clk 0:01:08]} 17. Nxe4 {[%clk 0:00:55]}  Bxd4 {[%clk 0:01:06]} 18. Qxd4 {[%clk 0:00:54]}  Qxc2 {[%clk 0:01:06]} 19. Rc1 {[%clk 0:00:46]}  Qe2 {[%clk 0:00:46]} 20. Nd6 {[%clk 0:00:18]}  Ba6 {[%clk 0:00:43]} 21. Rfe1 {[%clk 0:00:18]}  Qh5 {[%clk 0:00:43]} 22. Qh4 {[%clk 0:00:13]}  Qg6 {[%clk 0:00:40]} 23. Re4 {[%clk 0:00:09]}  h6 {[%clk 0:00:17]} 24. Rg4 {[%clk 0:00:03]}  hxg5 {[%clk 0:00:16]} 25. Rxg5 {[%clk 0:00:04]}  Qh7 {[%clk 0:00:16]} 26. Rh5 {[%clk 0:00:05]}  Bd3 {[%clk 0:00:13]} 27. Rxh7 {[%clk 0:00:04]}  Bxh7 {[%clk 0:00:14]} 28. g3 {[%clk 0:00:03]}  Rad8 {[%clk 0:00:13]} 29. Rc4 {[%clk 0:00:02]}  f6 {[%clk 0:00:13]} 30. Rg4 {[%clk 0:00:03]}  fxe5 {[%clk 0:00:12]} 31. Ne4 {[%clk 0:00:02]}  Bf5 {[%clk 0:00:10]} 32. Rg5 {[%clk 0:00:01]}  Rd7 {[%clk 0:00:09]} 33. Rh5 {[%clk 0:00:01]}  Kf7 {[%clk 0:00:08]} 34. Ng5+ {[%clk 0:00:02]}  Ke8 {[%clk 0:00:08]} 35. Rh8 {[%clk 0:00:03]}  Nf6 {[%clk 0:00:06]} 36. Rxf8+ {[%clk 0:00:03]}  Kxf8 {[%clk 0:00:07]} 37. Qh8+ {[%clk 0:00:03]}  Ke7 {[%clk 0:00:07]} 38. Qxg7+ {[%clk 0:00:04]}  Kd6 {[%clk 0:00:06]} 39. Qxf6 {[%clk 0:00:04]}  Rc7 {[%clk 0:00:07]} 40. Nf7+ {[%clk 0:00:05]}  Kd7 {[%clk 0:00:07]} 41. Nxe5+ {[%clk 0:00:05]}  Kd6 {[%clk 0:00:07]} 42. Nf7+ {[%clk 0:00:05]}  Kd7 {[%clk 0:00:08]} 43. Ne5+ {[%clk 0:00:05]}  Kd6 {[%clk 0:00:08]} 44. f4 {[%clk 0:00:06]}  Be4 {[%clk 0:00:08]} 45. Kf2 {[%clk 0:00:06]}  Rc2+ {[%clk 0:00:08]} 46. Ke3 {[%clk 0:00:07]}  Bd5 {[%clk 0:00:09]} 47. Qd8+ {[%clk 0:00:07]}  Kc5 {[%clk 0:00:05]} 48. Qc7+ {[%clk 0:00:08]} 1-0

[Event "January 2 Late 2024"]
[Site "https://www.chess.com"]
[Date "2024.01.02"]
[Round "7"]
[White "Yagupov, Igor"]
[Black "Yarar, Bora"]
[Result "0-1"]
[Board "31"]
[TimeControl "180+1"]
[WhiteFideId "4113632"]
[BlackFideId "34588400"]
[WhiteElo "2640"]
[BlackElo "2765"]
[WhiteTeam "RUS"]
[BlackTeam "TUR"]
[WhiteClock "0:00:00"]
[BlackClock "0:00:15"]

1. e4 {[%clk 0:03:00]}  e6 {[%clk 0:02:59]} 2. d4 {[%clk 0:02:59]}  d5 {[%clk 0:03:00]} 3. Nc3 {[%clk 0:03:00]}  Nf6 {[%clk 0:03:00]} 4. e5 {[%clk 0:02:59]}  Nfd7 {[%clk 0:03:00]} 5. f4 {[%clk 0:03:00]}  c5 {[%clk 0:03:00]} 6. Nf3 {[%clk 0:03:00]}  Nc6 {[%clk 0:03:01]} 7. Be3 {[%clk 0:03:00]}  Qb6 {[%clk 0:03:02]} 8. Na4 {[%clk 0:03:00]}  Qa5+ {[%clk 0:03:02]} 9. c3 {[%clk 0:02:59]}  b6 {[%clk 0:03:03]} 10. Bd2 {[%clk 0:02:53]}  c4 {[%clk 0:03:03]} 11. b4 {[%clk 0:02:04]}  Nxb4 {[%clk 0:03:01]} 12. cxb4 {[%clk 0:02:04]}  Bxb4 {[%clk 0:03:02]} 13. Rc1 {[%clk 0:01:52]}  Bxd2+ {[%clk 0:03:00]} 14. Nxd2 {[%clk 0:01:51]}  b5 {[%clk 0:03:00]} 15. Nc3 {[%clk 0:01:44]}  O-O {[%clk 0:02:58]} 16. a4 {[%clk 0:01:16]}  b4 {[%clk 0:02:57]} 17. Nb5 {[%clk 0:01:16]}  c3 {[%clk 0:02:42]} 18. Nb3 {[%clk 0:01:09]}  Qd8 {[%clk 0:02:41]} 19. a5 {[%clk 0:01:06]}  f6 {[%clk 0:02:40]} 20. Bd3 {[%clk 0:00:54]}  fxe5 {[%clk 0:02:35]} 21. fxe5 {[%clk 0:00:51]}  Qg5 {[%clk 0:02:28]} 22. Rc2 {[%clk 0:00:47]}  Ba6 {[%clk 0:02:19]} 23. Re2 {[%clk 0:00:37]}  Bxb5 {[%clk 0:01:55]} 24. Bxb5 {[%clk 0:00:37]}  Rad8 {[%clk 0:01:52]} 25. Rf1 {[%clk 0:00:28]}  Rxf1+ {[%clk 0:01:47]} 26. Kxf1 {[%clk 0:00:27]}  Nf8 {[%clk 0:01:47]} 27. Rf2 {[%clk 0:00:25]}  Ng6 {[%clk 0:01:44]} 28. Qf3 {[%clk 0:00:21]}  Rf8 {[%clk 0:01:42]} 29. Qg3 {[%clk 0:00:22]}  Rxf2+ {[%clk 0:01:33]} 30. Kxf2 {[%clk 0:00:15]}  Qf5+ {[%clk 0:01:33]} 31. Qf3 {[%clk 0:00:10]}  Qc2+ {[%clk 0:01:32]} 32. Kg3 {[%clk 0:00:10]}  Ne7 {[%clk 0:01:10]} 33. Bd7 {[%clk 0:00:09]}  Qf5 {[%clk 0:01:04]} 34. Qxf5 {[%clk 0:00:08]}  Nxf5+ {[%clk 0:01:05]} 35. Kf3 {[%clk 0:00:08]}  Kf7 {[%clk 0:01:06]} 36. g4 {[%clk 0:00:07]}  Nh4+ {[%clk 0:01:01]} 37. Kg3 {[%clk 0:00:07]}  Ng6 {[%clk 0:01:02]} 38. Ba4 {[%clk 0:00:06]}  Ke7 {[%clk 0:00:54]} 39. Nc5 {[%clk 0:00:06]}  Nf8 {[%clk 0:00:38]} 40. Nd3 {[%clk 0:00:06]}  g5 {[%clk 0:00:29]} 41. Nxb4 {[%clk 0:00:06]}  Ng6 {[%clk 0:00:30]} 42. Nd3 {[%clk 0:00:06]}  h6 {[%clk 0:00:27]} 43. Bc2 {[%clk 0:00:05]}  Kd8 {[%clk 0:00:26]} 44. Kf3 {[%clk 0:00:04]}  Kc7 {[%clk 0:00:26]} 45. Ke3 {[%clk 0:00:03]}  Kc6 {[%clk 0:00:20]} 46. Ba4+ {[%clk 0:00:02]}  Kb7 {[%clk 0:00:19]} 47. Bb5 {[%clk 0:00:00]}  c2 {[%clk 0:00:15]} 0-1

[Event "January 2 Late 2024"]
[Site "https://www.chess.com"]
[Date "2024.01.02"]
[Round "7"]
[White "CamillaEffect"]
[Black "Fedoseev, Vladimir"]
[Result "0-1"]
[Board "32"]
[TimeControl "180+1"]
[BlackFideId "24130737"]
[WhiteElo "2651"]
[BlackElo "3010"]
[BlackTeam "SLO"]
[WhiteClock "0:00:00"]
[BlackClock "0:02:03"]

1. e4 {[%clk 0:03:00]}  c6 {[%clk 0:02:52]} 2. d4 {[%clk 0:02:59]}  d5 {[%clk 0:02:52]} 3. exd5 {[%clk 0:02:59]}  cxd5 {[%clk 0:02:53]} 4. c4 {[%clk 0:03:00]}  Nf6 {[%clk 0:02:52]} 5. Nc3 {[%clk 0:03:00]}  Nc6 {[%clk 0:02:47]} 6. Bg5 {[%clk 0:03:00]}  Be6 {[%clk 0:02:47]} 7. Nf3 {[%clk 0:02:58]}  h6 {[%clk 0:02:45]} 8. Bxf6 {[%clk 0:02:46]}  exf6 {[%clk 0:02:46]} 9. c5 {[%clk 0:02:45]}  g5 {[%clk 0:02:40]} 10. Bb5 {[%clk 0:02:31]}  Bg7 {[%clk 0:02:40]} 11. b4 {[%clk 0:02:25]}  O-O {[%clk 0:02:38]} 12. Bxc6 {[%clk 0:02:23]}  bxc6 {[%clk 0:02:39]} 13. O-O {[%clk 0:02:21]}  g4 {[%clk 0:02:34]} 14. Nd2 {[%clk 0:02:14]}  f5 {[%clk 0:02:35]} 15. Nb3 {[%clk 0:02:12]}  f4 {[%clk 0:02:35]} 16. b5 {[%clk 0:01:48]}  cxb5 {[%clk 0:02:26]} 17. Nxb5 {[%clk 0:01:48]}  f3 {[%clk 0:02:27]} 18. gxf3 {[%clk 0:01:40]}  Qh4 {[%clk 0:02:25]} 19. fxg4 {[%clk 0:01:23]}  Bxg4 {[%clk 0:02:23]} 20. Qd3 {[%clk 0:01:21]}  Rae8 {[%clk 0:02:18]} 21. Qg3 {[%clk 0:01:15]}  Qh5 {[%clk 0:02:18]} 22. Rfe1 {[%clk 0:00:51]}  Re6 {[%clk 0:02:18]} 23. Rxe6 {[%clk 0:00:46]}  fxe6 {[%clk 0:02:19]} 24. Re1 {[%clk 0:00:44]}  Rf3 {[%clk 0:02:17]} 25. Qb8+ {[%clk 0:00:39]}  Kh7 {[%clk 0:02:18]} 26. Re3 {[%clk 0:00:37]}  Bh3 {[%clk 0:02:13]} 27. Qg3 {[%clk 0:00:12]}  Rxe3 {[%clk 0:02:03]} 28. fxe3 {[%clk 0:00:00]}  Qd1+ {[%clk 0:02:03]} 0-1

[Event "January 2 Late 2024"]
[Site "https://www.chess.com"]
[Date "2024.01.02"]
[Round "7"]
[White "Banzea, Alexandru-Bogdan"]
[Black "Hakobyan, Aram"]
[Result "0-1"]
[Board "33"]
[TimeControl "180+1"]
[WhiteFideId "1232622"]
[BlackFideId "13306677"]
[WhiteElo "2672"]
[BlackElo "3007"]
[WhiteTeam "ROU"]
[BlackTeam "ARM"]
[WhiteClock "0:00:00"]
[BlackClock "0:01:42"]

1. d4 {[%clk 0:03:00]}  Nf6 {[%clk 0:03:00]} 2. Nc3 {[%clk 0:02:59]}  c5 {[%clk 0:02:56]} 3. d5 {[%clk 0:02:58]}  d6 {[%clk 0:02:56]} 4. e4 {[%clk 0:02:54]}  g6 {[%clk 0:02:57]} 5. Nf3 {[%clk 0:02:51]}  Bg4 {[%clk 0:02:55]} 6. h3 {[%clk 0:02:46]}  Bxf3 {[%clk 0:02:55]} 7. Qxf3 {[%clk 0:02:47]}  a6 {[%clk 0:02:55]} 8. a4 {[%clk 0:02:47]}  Nbd7 {[%clk 0:02:55]} 9. Qd1 {[%clk 0:02:46]}  Bg7 {[%clk 0:02:55]} 10. Bc4 {[%clk 0:02:39]}  O-O {[%clk 0:02:55]} 11. O-O {[%clk 0:02:40]}  Rb8 {[%clk 0:02:53]} 12. Re1 {[%clk 0:02:38]}  Ne8 {[%clk 0:02:53]} 13. Bf1 {[%clk 0:02:34]}  Nc7 {[%clk 0:02:54]} 14. a5 {[%clk 0:02:34]}  e6 {[%clk 0:02:45]} 15. dxe6 {[%clk 0:02:30]}  Nxe6 {[%clk 0:02:46]} 16. Qxd6 {[%clk 0:02:27]}  Nd4 {[%clk 0:02:45]} 17. Nd5 {[%clk 0:01:52]}  Be5 {[%clk 0:02:20]} 18. Qe7 {[%clk 0:01:32]}  Nxc2 {[%clk 0:02:19]} 19. Bg5 {[%clk 0:01:05]}  Qxe7 {[%clk 0:02:08]} 20. Bxe7 {[%clk 0:00:51]}  Rfe8 {[%clk 0:02:03]} 21. Bc4 {[%clk 0:00:31]}  Nxa1 {[%clk 0:02:01]} 22. Rxa1 {[%clk 0:00:32]}  Bxb2 {[%clk 0:02:00]} 23. Rb1 {[%clk 0:00:27]}  Be5 {[%clk 0:01:52]} 24. f4 {[%clk 0:00:26]}  Bd4+ {[%clk 0:01:42]} 25. Kf1 {[%clk 0:00:22]}  b5 {[%clk 0:01:42]} 26. axb6 {[%clk 0:00:22]}  Nxb6 {[%clk 0:01:41]} 27. Ba2 {[%clk 0:00:05]}  Nxd5 {[%clk 0:01:40]} 28. Rxb8 {[%clk 0:00:02]}  Ne3+ {[%clk 0:01:41]} 29. Ke2 {[%clk 0:00:00]}  Rxb8 {[%clk 0:01:42]} 0-1